fUST/lending_fUST_20241208
["ID","MTS","AMOUNT","RATE_DAILY","PERIOD"]
[344642422,1733663438496,-500.0,0.00023968,2]
[344642423,1733663438511,-500.0,0.00023968,2]
[344642424,1733663438523,-500.0,0.00023968,2]
[344642425,1733663438536,-500.0,0.00023968,2]
[344642426,1733663438550,-500.0,0.00023968,2]
[344642427,1733663438564,-500.0,0.00023968,2]
[344642428,1733663438576,-500.0,0.00023968,2]
[344642429,1733663438588,-609.00849156,0.00023968,2]
[344642430,1733663438598,-277.10852532,0.00023968,2]
[344642431,1733663438611,-500.0,0.00023968,2]
[344642432,1733663438624,-500.0,0.00023968,2]
[344642433,1733663438637,-500.0,0.00023968,2]
[344642434,1733663438650,-500.0,0.00023968,2]
[344642435,1733663438663,-500.0,0.00023968,2]
[344642436,1733663438678,-500.0,0.00023968,2]
[344642437,1733663438692,-500.0,0.00023968,2]
[344642438,1733663438706,-500.0,0.00023968,2]
[344642439,1733663438718,-500.0,0.00023968,2]
[344642440,1733663438730,-361.11712921,0.00023968,2]
[344642441,1733663438742,-500.0,0.00023968,2]
[344642442,1733663438756,-500.0,0.00023968,2]
[344642443,1733663438772,-500.0,0.00023968,2]
[344642444,1733663438785,-500.0,0.00023968,2]
[344642445,1733663438796,-500.0,0.00023968,2]
[344642446,1733663438809,-500.0,0.00023968,2]
[344642447,1733663438822,-500.0,0.00023968,2]
[344642448,1733663438835,-500.0,0.00023968,2]
[344642449,1733663438849,-500.0,0.00023968,2]
[344642450,1733663438861,-500.0,0.00023968,2]
[344642451,1733663438875,-500.0,0.00023968,2]
[344642452,1733663438887,-500.0,0.00023968,2]
[344642453,1733663438902,-500.0,0.00023968,2]
[344642454,1733663438914,-500.0,0.00023968,2]
[344642455,1733663438927,-500.0,0.00023968,2]
[344642456,1733663438939,-500.0,0.00023968,2]
[344642457,1733663438951,-500.0,0.00023968,2]
[344642458,1733663438963,-500.0,0.00023968,2]
[344642459,1733663438975,-500.0,0.00023968,2]
[344642460,1733663438986,-500.0,0.00023968,2]
[344642461,1733663438998,-500.0,0.00023968,2]
[344642462,1733663439009,-500.0,0.00023968,2]
[344642463,1733663439020,-500.0,0.00023968,2]
[344642464,1733663439032,-500.0,0.00023968,2]
[344642465,1733663439045,-500.0,0.00023968,2]
[344642466,1733663439057,-55346.70803974,0.00023969,2]
[344642475,1733663442460,-2421.85827071,0.00023969,2]
[344642476,1733663442470,-182.3428205,0.00024096,2]
[344642477,1733663442479,-185.56814075,0.00024103,2]
[344642478,1733663442488,-400.0,0.00024149,2]
[344642479,1733663442498,-5814.87252329,0.00024232,2]
[344642480,1733663442507,-3450.50081493,0.00024233,2]
[344642481,1733663442516,-153.524987,0.00024331,7]
[344642482,1733663442526,-151.0,0.00024331,7]
[344642483,1733663442535,-151.0,0.00024331,7]
[344642484,1733663442545,-151.0,0.00024331,7]
[344642485,1733663442554,-155.940128,0.00024331,7]
[344642486,1733663442563,-151.0,0.00024331,7]
[344642487,1733663442573,-151.0,0.00024331,7]
[344642488,1733663442582,-151.0,0.00024331,7]
[344642489,1733663442592,-151.0,0.00024331,7]
[344642490,1733663442602,-151.0,0.00024331,7]
[344642491,1733663442611,-151.0,0.00024331,7]
[344642492,1733663442621,-151.0,0.00024332,7]
[344642493,1733663442630,-155.896529,0.00024332,7]
[344642494,1733663442639,-151.0,0.00024332,7]
[344642495,1733663442648,-151.0,0.00024333,7]
[344642496,1733663442658,-151.0,0.00024333,7]
[344642497,1733663442668,-151.0,0.00024333,7]
[344642498,1733663442679,-151.0,0.00024333,7]
[344642499,1733663442688,-153.794185,0.00024333,7]
[344642500,1733663442698,-151.0,0.00024333,7]
[344642501,1733663442707,-151.0,0.00024333,7]
[344642502,1733663442717,-200.240414,0.00024333,7]
[344642503,1733663442726,-151.0,0.00024333,7]
[344642504,1733663442736,-151.0,0.00024333,7]
[344642505,1733663442745,-151.0,0.00024333,7]
[344642506,1733663442755,-861.028561,0.00024333,7]
[344642507,1733663442764,-861.028561,0.00024333,7]
[344642508,1733663442774,-861.028561,0.00024333,7]
[344642509,1733663442784,-861.028561,0.00024333,7]
[344642511,1733663442793,-759.842637,0.00024333,7]
[344642513,1733663442803,-151.0,0.00024333,7]
[344642514,1733663442812,-759.842637,0.00024333,7]
[344642516,1733663442822,-151.0,0.00024333,7]
[344642517,1733663442831,-759.842637,0.00024333,7]
[344642519,1733663442840,-759.842637,0.00024333,7]
[344642521,1733663442854,-151.0,0.00024333,7]
[344642524,1733663442863,-151.0,0.00024333,7]
[344642526,1733663442872,-657.578792,0.00024333,7]
[344642527,1733663442883,-657.578792,0.00024333,7]
[344642528,1733663442893,-657.578792,0.00024333,7]
[344642529,1733663442902,-657.578792,0.00024333,7]
[344642530,1733663442911,-151.0,0.00024334,7]
[344642531,1733663442921,-151.0,0.00024334,7]
[344642532,1733663442930,-151.0,0.00024334,7]
[344642533,1733663442940,-151.0,0.00024334,7]
[344642534,1733663442949,-151.0,0.00024334,7]
[344642535,1733663442958,-151.0,0.00024334,7]
[344642536,1733663442967,-151.0,0.00024334,7]
[344642538,1733663442977,-340.18631949,0.00024334,2]
[344642540,1733663442986,-500.0,0.00024334,2]
[344642541,1733663442996,-262.35925461,0.00024334,2]
[344642542,1733663443006,-301.92526316,0.00024334,2]
[344642543,1733663443016,-188.21099413,0.00024334,2]
[344642544,1733663443025,-151.0,0.00024335,7]
[344642545,1733663443034,-151.0,0.00024335,7]
[344642546,1733663443043,-151.0,0.00024335,7]
[344642547,1733663443052,-151.903264,0.00024335,7]
[344642548,1733663443062,-151.0,0.00024335,7]
[344642549,1733663443071,-152.305748,0.00024335,7]
[344642550,1733663443080,-1261.024477,0.00024335,7]
[344642551,1733663443089,-151.0,0.00024335,7]
[344642552,1733663443099,-1261.024477,0.00024335,7]
[344642553,1733663443107,-151.0,0.00024335,7]
[344642554,1733663443116,-151.0,0.00024335,7]
[344642555,1733663443125,-151.0,0.00024336,7]
[344642556,1733663443134,-151.0,0.00024336,7]
[344642558,1733663443143,-151.0,0.00024336,7]
[344642560,1733663443152,-151.0,0.00024336,7]
[344642561,1733663443162,-1261.024477,0.00024336,7]
[344642562,1733663443171,-151.0,0.00024336,7]
[344642563,1733663443182,-1261.024477,0.00024336,7]
[344642564,1733663443190,-185.56814075,0.00024336,2]
[344642566,1733663443200,-9866.01100103,0.00024361,2]
[344642567,1733663443209,-500.0,0.00024373,2]
[344642568,1733663443218,-3450.5008149,0.00024403,2]
[344642569,1733663443227,-420.0,0.00024421,2]
[344642570,1733663443236,-151.0,0.00024434,7]
[344642571,1733663443245,-151.0,0.00024434,7]
[344642573,1733663443255,-151.0,0.00024434,7]
[344642575,1733663443264,-151.0,0.00024434,7]
[344642577,1733663443273,-185.425864,0.00024434,7]
[344642578,1733663443282,-231.918495,0.00024434,7]
[344642580,1733663443292,-185.425864,0.00024434,7]
[344642581,1733663443301,-362.239893,0.00024434,7]
[344642582,1733663443310,-362.239893,0.00024434,7]
[344642583,1733663443319,-362.239893,0.00024434,7]
[344642584,1733663443327,-362.239893,0.00024434,7]
[344642585,1733663443336,-332.377561,0.00024434,7]
[344642586,1733663443346,-332.377561,0.00024434,7]
[344642587,1733663443355,-332.377561,0.00024434,7]
[344642588,1733663443364,-332.377561,0.00024434,7]
[344642589,1733663443373,-158.365376,0.00024434,7]
[344642590,1733663443383,-861.028561,0.00024434,7]
[344642591,1733663443393,-861.028561,0.00024434,7]
[344642592,1733663443402,-759.842637,0.00024434,7]
[344642593,1733663443411,-151.0,0.00024434,7]
[344642594,1733663443420,-759.842637,0.00024434,7]
[344642595,1733663443430,-151.0,0.00024434,7]
[344642596,1733663443440,-151.0,0.00024434,7]
[344642597,1733663443450,-151.0,0.00024434,7]
[344642598,1733663443459,-657.578792,0.00024434,7]
[344642599,1733663443468,-657.578792,0.00024434,7]
[344642600,1733663443478,-151.0,0.00024435,7]
[344642601,1733663443488,-1706.89886,0.00024435,7]
[344642602,1733663443498,-1706.89886,0.00024435,7]
[344642603,1733663443508,-151.0,0.00024435,7]
[344642604,1733663443518,-285.91126,0.00024435,7]
[344642605,1733663443528,-151.0,0.00024435,7]
[344642606,1733663443537,-350.720756,0.00024435,7]
[344642607,1733663443547,-350.720756,0.00024435,7]
[344642608,1733663443556,-151.0,0.00024435,7]
[344642609,1733663443566,-185.425864,0.00024435,7]
[344642610,1733663443575,-185.425864,0.00024435,7]
[344642611,1733663443584,-151.0,0.00024435,7]
[344642612,1733663443594,-151.0,0.00024435,7]
[344642613,1733663443603,-151.0,0.00024435,7]
[344642614,1733663443613,-151.0,0.00024435,7]
[344642615,1733663443622,-151.0,0.00024435,7]
[344642616,1733663443631,-151.0,0.00024435,7]
[344642617,1733663443641,-151.0,0.00024435,7]
[344642618,1733663443650,-285.525286,0.00024435,7]
[344642619,1733663443659,-151.0,0.00024435,7]
[344642620,1733663443668,-151.0,0.00024436,7]
[344642621,1733663443678,-151.0,0.00024436,7]
[344642622,1733663443687,-215.626576,0.00024436,7]
[344642623,1733663443697,-151.0,0.00024436,7]
[344642624,1733663443706,-151.0,0.00024436,7]
[344642625,1733663443715,-151.0,0.00024436,7]
[344642626,1733663443724,-1261.024477,0.00024436,7]
[344642627,1733663443733,-151.0,0.00024436,7]
[344642628,1733663443742,-1039.82254005,0.00024436,7]
[344642629,1733663443755,-221.20193695,0.00024436,7]
[344642630,1733663443764,-861.028561,0.00024436,7]
[344642631,1733663443773,-861.028561,0.00024436,7]
[344642632,1733663443783,-759.842637,0.00024436,7]
[344642633,1733663443794,-151.0,0.00024436,7]
[344642634,1733663443803,-759.842637,0.00024436,7]
[344642635,1733663443813,-151.0,0.00024436,7]
[344642636,1733663443822,-657.578792,0.00024436,7]
[344642637,1733663443832,-657.578792,0.00024436,7]
[344642638,1733663443841,-151.0,0.00024437,7]
[344642639,1733663443854,-151.0,0.00024437,7]
[344642640,1733663443864,-151.0,0.00024437,7]
[344642641,1733663443874,-151.0,0.00024437,7]
[344642642,1733663443883,-362.239893,0.00024437,7]
[344642643,1733663443892,-362.239893,0.00024437,7]
[344642644,1733663443902,-332.377561,0.00024437,7]
[344642645,1733663443911,-332.377561,0.00024437,7]
[344642646,1733663443920,-151.0,0.00024437,7]
[344642647,1733663443932,-153.908322,0.00024437,7]
[344642648,1733663443941,-151.0,0.00024438,7]
[344642649,1733663443950,-151.0,0.00024438,7]
[344642650,1733663443959,-151.492079,0.00024439,7]
[344642651,1733663443968,-152.318665,0.00024439,7]
[344642652,1733663443977,-263.632703,0.00024439,7]
[344642653,1733663443986,-263.632703,0.00024439,7]
[344642654,1733663443995,-151.0,0.00024439,7]
[344642655,1733663444005,-151.0,0.00024439,7]
[344642656,1733663444014,-185.425864,0.00024439,7]
[344642657,1733663444023,-185.425864,0.00024439,7]
[344642658,1733663444032,-151.0,0.00024439,7]
[344642659,1733663444041,-151.0,0.00024439,7]
[344642660,1733663444050,-4901.8054225,0.0002444,2]
[344642661,1733663444174,-10573.70237155,0.0002444,2]
[344642662,1733663444185,-31126.76491307,0.0002444,2]
[344642663,1733663444194,-152.175104,0.0002444,7]
[344642664,1733663444204,-151.0,0.0002444,7]
[344642665,1733663444213,-263.632703,0.0002444,7]
[344642666,1733663444222,-263.632703,0.0002444,7]
[344642667,1733663444231,-151.0,0.0002444,7]
[344642668,1733663444240,-151.845112,0.0002444,7]
[344642669,1733663444249,-189.275503,0.0002444,7]
[344642670,1733663444259,-151.0,0.0002444,7]
[344642671,1733663444268,-151.0,0.0002444,7]
[344642672,1733663444277,-151.0,0.0002444,7]
[344642673,1733663444286,-204.826486,0.0002444,7]
[344642674,1733663444295,-1706.89886,0.0002444,7]
[344642675,1733663444304,-1706.89886,0.0002444,7]
[344642676,1733663444313,-151.0,0.0002444,7]
[344642677,1733663444322,-285.91126,0.0002444,7]
[344642678,1733663444331,-151.0,0.0002444,7]
[344642679,1733663444340,-350.720756,0.0002444,7]
[344642680,1733663444349,-350.720756,0.0002444,7]
[344642681,1733663444358,-151.0,0.0002444,7]
[344642682,1733663444366,-185.425864,0.0002444,7]
[344642683,1733663444375,-185.425864,0.0002444,7]
[344642684,1733663444384,-151.0,0.0002444,7]
[344642685,1733663444393,-151.0,0.0002444,7]
[344642686,1733663444401,-151.0,0.0002444,7]
[344642687,1733663444410,-92.06037038,0.0002444,7]
[344642715,1733663503529,176.962542,0.00013973,2]
[344642795,1733664518804,608.19158355,0.0001999,2]
[344642826,1733664632240,-523.5364229,0.000229,2]
[344642828,1733664632250,-173.823352,0.0002294,2]
[344642830,1733664632261,-400.0,0.00023551,2]
[344642832,1733664632271,-186.2575568,0.00023562,2]
[344642834,1733664632281,-713.48266831,0.00023569,2]
[344642837,1733664632292,-60.14802319,0.00023569,2]
[344642839,1733664632303,-300.0,0.00023645,2]
[344642841,1733664632312,-103.87148818,0.00023645,2]
[344642913,1733664638198,-196.12851182,0.00023645,2]
[344642914,1733664638208,-3828.22523963,0.00023646,2]
[344642915,1733664638263,-16135.49677827,0.00023646,2]
[344642916,1733664638273,-400.0,0.00024423,2]
[344642917,1733664638283,-151.0,0.0002444,7]
[344642918,1733664638294,-151.0,0.0002444,7]
[344642919,1733664638305,-151.0,0.00024508,7]
[344642920,1733664638315,-151.0,0.00024508,7]
[344642921,1733664638324,-380.0,0.00024658,2]
[344642922,1733664638335,-151.0,0.00024658,7]
[344642924,1733664638344,-151.0,0.00024658,7]
[344642926,1733664638354,-151.0,0.00024759,7]
[344642928,1733664638363,-151.0,0.00024887,7]
[344642930,1733664638372,-226.530527,0.000249,7]
[344642932,1733664638382,-2070.30048894,0.000249,2]
[344642934,1733664638391,-536.6500416,0.000249,2]
[344642936,1733664638401,-2070.30048894,0.0002492,2]
[344642938,1733664638409,-151.0,0.00024925,7]
[344642940,1733664638419,-2070.30048894,0.0002494,2]
[344642942,1733664638428,-2070.30048894,0.00024959,2]
[344642944,1733664638437,-408.82595052,0.00024973,2]
[344642946,1733664638448,-438.37192134,0.00024973,2]
[344642947,1733664638456,-500.0,0.00024973,2]
[344642950,1733664638465,-500.0,0.00024973,2]
[344642952,1733664638474,-2070.30048894,0.00024979,2]
[344642953,1733664638483,-194.20202811,0.00024999,2]
[344642955,1733664638494,-345.44538795,0.00024999,2]
[344642958,1733664638503,-308.56761392,0.00024999,2]
[344642960,1733664638512,-500.0,0.00024999,2]
[344642962,1733664638521,-500.0,0.00024999,2]
[344642964,1733664638530,-500.0,0.00024999,2]
[344642966,1733664638541,-500.0,0.00024999,2]
[344642968,1733664638550,-500.0,0.00024999,2]
[344642970,1733664638558,-500.0,0.00024999,2]
[344642972,1733664638567,-500.0,0.00024999,2]
[344642973,1733664638576,-500.0,0.00024999,2]
[344642974,1733664638585,-500.0,0.00024999,2]
[344642975,1733664638594,-500.0,0.00024999,2]
[344642976,1733664638603,-500.0,0.00024999,2]
[344642977,1733664638613,-500.0,0.00024999,2]
[344642978,1733664638621,-500.0,0.00024999,2]
[344642979,1733664638630,-500.0,0.00024999,2]
[344642980,1733664638640,-500.0,0.00024999,2]
[344642981,1733664638649,-500.0,0.00024999,2]
[344642982,1733664638660,-500.0,0.00024999,2]
[344642983,1733664638670,-500.0,0.00024999,2]
[344642984,1733664638679,-186.11171293,0.00024999,2]
[344642985,1733664638688,-238.13042364,0.00024999,2]
[344642986,1733664638697,-481.74769589,0.00024999,2]
[344642987,1733664638706,-183.65147823,0.00024999,2]
[344642988,1733664638715,-211.34768421,0.00024999,2]
[344642989,1733664638724,-56557.6371751,0.00025,2]
[344642990,1733664638733,-3147.19,0.00025,14]
[344642991,1733664638743,-4580.408437,0.00025,2]
[344642992,1733664638753,-151.0,0.00025,7]
[344642993,1733664638762,-293.241618,0.00025,7]
[344642994,1733664638771,-394.547275,0.00025,7]
[344642995,1733664638780,-394.547275,0.00025,7]
[344642996,1733664638789,-394.547275,0.00025,7]
[344642997,1733664638799,-394.547275,0.00025,7]
[344642998,1733664638808,-394.547275,0.00025,7]
[344642999,1733664638818,-394.547275,0.00025,7]
[344643000,1733664638827,-394.547275,0.00025,7]
[344643001,1733664638836,-394.547275,0.00025,7]
[344643002,1733664638845,-151.0,0.00025,7]
[344643003,1733664638854,-151.0,0.00025,7]
[344643004,1733664638863,-151.0,0.00025,7]
[344643005,1733664638877,-274.421981,0.00025,7]
[344643006,1733664638886,-151.0,0.00025,7]
[344643007,1733664638896,-151.0,0.00025,7]
[344643008,1733664638905,-151.0,0.00025,7]
[344643009,1733664638913,-151.0,0.00025,7]
[344643010,1733664638922,-151.0,0.00025,7]
[344643011,1733664638931,-151.0,0.00025,7]
[344643012,1733664638941,-177.411206,0.00025,7]
[344643013,1733664638951,-186.067201,0.00025,7]
[344643014,1733664638960,-151.0,0.00025,7]
[344643015,1733664638969,-151.0,0.00025,7]
[344643016,1733664638978,-151.0,0.00025,7]
[344643017,1733664638987,-151.0,0.00025,7]
[344643018,1733664638996,-152.374991,0.00025,7]
[344643019,1733664639005,-206.666223,0.00025,7]
[344643020,1733664639014,-315.696178,0.00025,7]
[344643021,1733664639024,-315.696178,0.00025,7]
[344643022,1733664639033,-315.696178,0.00025,7]
[344643023,1733664639043,-315.696178,0.00025,7]
[344643024,1733664639052,-151.0,0.00025,7]
[344643025,1733664639061,-151.0,0.00025,7]
[344643026,1733664639070,-455.905582,0.00025,7]
[344643027,1733664639079,-455.905582,0.00025,7]
[344643028,1733664639089,-455.905582,0.00025,7]
[344643029,1733664639098,-455.905582,0.00025,7]
[344643030,1733664639107,-1365.519088,0.00025,7]
[344643031,1733664639116,-1365.519088,0.00025,7]
[344643032,1733664639126,-1365.519088,0.00025,7]
[344643033,1733664639136,-151.0,0.00025,7]
[344643034,1733664639145,-157.197419,0.00025,7]
[344643035,1733664639154,-1365.519088,0.00025,7]
[344643036,1733664639163,-1365.519088,0.00025,7]
[344643037,1733664639172,-1365.519088,0.00025,7]
[344643038,1733664639181,-151.0,0.00025,7]
[344643039,1733664639271,-151.0,0.00025,7]
[344643040,1733664639283,-151.0,0.00025,7]
[344643041,1733664639292,-151.0,0.00025,7]
[344643042,1733664639302,-151.0,0.00025,7]
[344643043,1733664639311,-151.0,0.00025,7]
[344643044,1733664639321,-14408.93281883,0.00025,7]
[344643045,1733664639330,-151.0,0.00025,7]
[344643046,1733664639341,-151.0,0.00025,7]
[344643047,1733664639350,-151.0,0.00025,7]
[344643048,1733664639359,-261.343295,0.00025,7]
[344643049,1733664639369,-151.0,0.00025,7]
[344643050,1733664639378,-151.0,0.00025,7]
[344643051,1733664639387,-151.0,0.00025,7]
[344643052,1733664639397,-882.717134,0.00025,7]
[344643053,1733664639406,-882.717134,0.00025,7]
[344643054,1733664639415,-882.717134,0.00025,7]
[344643055,1733664639424,-882.717134,0.00025,7]
[344643056,1733664639434,-882.717134,0.00025,7]
[344643057,1733664639443,-882.717134,0.00025,7]
[344643058,1733664639454,-151.0,0.00025,7]
[344643059,1733664639464,-151.0,0.00025,7]
[344643060,1733664639473,-188.94438,0.00025,7]
[344643061,1733664639482,-151.0,0.00025,7]
[344643062,1733664639491,-151.0,0.00025,7]
[344643063,1733664639501,-151.0,0.00025,7]
[344643064,1733664639510,-151.0,0.00025,7]
[344643065,1733664639520,-151.0,0.00025,7]
[344643066,1733664639529,-151.0,0.00025,7]
[344643067,1733664639539,-5518.7134115,0.00025,7]
[344643068,1733664639548,-94923.61561262,0.00025,2]
[344643069,1733664639591,-2180.5334748,0.00025,2]
[344643070,1733664639603,-10277.55812536,0.00025,2]
[344643071,1733664639612,-253.567925,0.00025,7]
[344643072,1733664639621,-253.567925,0.00025,7]
[344643073,1733664639630,-44562.01406438,0.00025,2]
[344643074,1733664639641,-3063.08,0.00025,2]
[344643087,1733664642343,-6449.46609396,0.00025,2]
[344643088,1733664642352,-253.567925,0.00025,7]
[344643089,1733664642362,-253.567925,0.00025,7]
[344643090,1733664642371,-210.906163,0.00025,7]
[344643091,1733664642382,-210.906163,0.00025,7]
[344643092,1733664642391,-210.906163,0.00025,7]
[344643093,1733664642401,-280.576605,0.00025,7]
[344643094,1733664642411,-280.576605,0.00025,7]
[344643095,1733664642420,-280.576605,0.00025,7]
[344643096,1733664642430,-210.906163,0.00025,7]
[344643097,1733664642440,-210.906163,0.00025,7]
[344643098,1733664642451,-210.906163,0.00025,7]
[344643099,1733664642461,-280.576605,0.00025,7]
[344643100,1733664642470,-280.576605,0.00025,7]
[344643101,1733664642479,-280.576605,0.00025,7]
[344643102,1733664642488,-151.0,0.00025,7]
[344643103,1733664642497,-151.0,0.00025,7]
[344643104,1733664642506,-151.0,0.00025,7]
[344643105,1733664642515,-151.0,0.00025,7]
[344643106,1733664642524,-257.320134,0.00025,7]
[344643107,1733664642533,-257.320134,0.00025,7]
[344643108,1733664642543,-257.320134,0.00025,7]
[344643109,1733664642553,-257.320134,0.00025,7]
[344643110,1733664642562,-257.320134,0.00025,7]
[344643111,1733664642571,-257.320134,0.00025,7]
[344643112,1733664642581,-232.664293,0.00025,7]
[344643113,1733664642589,-232.664293,0.00025,7]
[344643114,1733664642599,-18821.72468552,0.00025,2]
[344643115,1733664642611,-944.39389295,0.00025,2]
[344643134,1733664643558,-9811.8050826,0.00025,2]
[344643135,1733664643570,-85143.41396044,0.00025,2]
[344643136,1733664643582,-6528.98938851,0.00025,2]
[344643145,1733664863733,176.962542,0.00013973,2]
[344643152,1733665509905,176.962542,0.00013973,2]
[344643204,1733665832481,-173.823351,0.00023746,2]
[344643207,1733665832491,-1395.5696189,0.00023761,11]
[344643209,1733665832501,-400.0,0.00024061,2]
[344643211,1733665832511,-168.23994692,0.0002437,2]
[344643213,1733665832520,-400.0,0.00024951,2]
[344643215,1733665832529,-273.398,0.00025079,9]
[344643217,1733665832538,-166.69129655,0.00025079,2]
[344643218,1733665832548,-337.22338712,0.00025079,2]
[344643220,1733665832560,-78.4679539,0.0002508,2]
[344643222,1733665832572,-221.5320461,0.0002508,2]
[344643226,1733665832582,-300.0,0.0002508,2]
[344643228,1733665832591,-1154.41662975,0.0002508,2]
[344643267,1733665838406,-500.0,0.00025079,2]
[344643269,1733665838416,-520.67907921,0.00025079,2]
[344643271,1733665838425,-364.67179617,0.0002508,2]
[344643273,1733665838437,-976.20797398,0.0002508,2]
[344643275,1733665838448,-19222.90336323,0.0002508,2]
[344643346,1733665843503,-47156.52688433,0.0002508,2]
[344643347,1733665843515,-5603.02410252,0.0002508,2]
[344643348,1733665843562,-28484.31089401,0.0002508,2]
[344643349,1733665843576,-76277.75794516,0.0002508,2]
[344643381,1733666140077,176.962542,0.00013973,2]
[344643384,1733666659135,171.47705061,0.00026,60]
[344643390,1733666803239,176.962542,0.00013973,2]
[344644151,1733667040630,-3995.0,0.00023183,2]
[344644153,1733667040639,-300.0,0.00023575,2]
[344644155,1733667040649,-300.0,0.00023575,2]
[344644157,1733667040661,-12276.4289559,0.00023576,2]
[344644159,1733667040674,-185.776796,0.00023652,2]
[344644161,1733667040685,-1001.9584488,0.00024,4]
[344644163,1733667040694,-240.0,0.00024067,2]
[344644165,1733667040704,-3375.9688544,0.00024821,2]
[344644167,1733667040714,-240.0,0.00024958,2]
[344644169,1733667040723,-236.05637099,0.00024999,2]
[344644171,1733667040732,-17399.03875562,0.00025,2]
[344644188,1733667044181,-1598.0,0.00025,2]
[344644195,1733667046714,-2821.4,0.00025,2]
[344644202,1733667399813,165.703086,0.00013973,2]
[344644223,1733668036523,171.332813,0.00013973,2]
[344644274,1733668232067,-196.40361396,0.00023,2]
[344644275,1733668232078,-187.47003547,0.00023143,2]
[344644276,1733668232091,-353.52316688,0.00023143,2]
[344644277,1733668232102,-180.0,0.00023377,2]
[344644278,1733668232115,-185.776796,0.00023562,2]
[344644279,1733668232127,-31.95291966,0.00023789,2]
[344644600,1733668704158,184.217499,0.00013973,2]
[344644602,1733668797229,8053.77976645,0.0002002,2]
[344644603,1733668797260,33552.48226998,0.0002002,2]
[344644604,1733668808628,87548.08535868,0.0002,2]
[344644614,1733669287440,250.47,0.0001761,2]
[344644615,1733669367980,171.906969,0.00013973,2]
[344644631,1733669432118,-250.0,0.00019178,2]
[344644632,1733669432128,-250.0,0.00022258,2]
[344644633,1733669432138,-4013.3006324,0.00022475,2]
[344644634,1733669432148,-1138.6580413,0.00022628,2]
[344644635,1733669432157,-349.527929,0.00022712,2]
[344644636,1733669432167,-423.94798471,0.00022743,2]
[344644644,1733669437918,-285.63659559,0.00022743,2]
[344644645,1733669437928,-166.26393,0.00023103,2]
[344644646,1733669437938,-213.4034275,0.00023678,2]
[344644647,1733669437947,-350.724,0.0002383,2]
[344644648,1733669437957,-213.4034275,0.000239,2]
[344644649,1733669437965,-300.0,0.00024177,2]
[344644650,1733669437975,-237.0724594,0.00024178,2]
[344644651,1733669437984,-155.305221,0.00024178,2]
[344644652,1733669437994,-266.6759974,0.00024178,2]
[344644653,1733669438003,-213.4034275,0.00024178,2]
[344644654,1733669438013,-284.71331382,0.00024178,2]
[344644655,1733669438039,-70.14298968,0.00024178,2]
[344644656,1733669438051,-153.0,0.00024178,2]
[344644657,1733669438061,-213.4034275,0.00024178,2]
[344644658,1733669438070,-153.0,0.00024178,2]
[344644659,1733669438079,-305.7163188,0.00024178,2]
[344644660,1733669438089,-213.4034275,0.00024178,2]
[344644661,1733669438098,-153.0,0.00024178,2]
[344644662,1733669438108,-153.0,0.00024178,2]
[344644663,1733669438118,-4529.76248756,0.000243,2]
[344644664,1733669438128,-155.66199734,0.0002431,2]